bitfinex-derivatives/quotes_ETHF0:USTF0_20250702
["timestamp","ask_amount","ask_price","bid_price","bid_amount"]
[1751478082671,1.86450087,2557.2,2557.1,0.78176]
[1751478083173,1.87152593,2557.2,2557.1,0.78176]
[1751478083571,1.08975593,2557.2,2557.1,0.78176]
[1751478084070,6.35121841,2558.0,2557.1,12.89661675]
[1751478084373,1.9533,2558.7,2557.6,1.95408]
[1751478084574,0.78144,2558.3,2557.9,0.78152]
[1751478084773,0.00618413,2558.2,2558.1,0.78148]
[1751478085567,3.993,2558.6,2557.9,1.95385]
[1751478085766,0.78126,2558.9,2558.0,7.89661675]
[1751478085969,0.78137,2558.5,2558.0,13.81581675]
[1751478086271,0.39636815,2559.0,2558.2,1.95362]
[1751478086466,0.78131,2558.7,2558.5,0.78133]
[1751478086671,5.94589,2559.2,2558.2,1.95362]
[1751478086866,1.95294,2559.1,2558.2,1.95362]
[1751478087071,0.78125,2558.9,2558.8,0.78126]
[1751478087266,0.78125,2558.9,2558.3,1.95355]
[1751478087267,0.78119,2559.1,2558.5,1.95339]
[1751478087474,0.78127,2558.8,2558.4,8.0515]
[1751478087667,3.7777,2559.3,2558.4,8.0515]
[1751478087871,0.78115,2559.2,2559.0,0.78118]
[1751478088070,0.78117,2559.1,2558.9,0.78122]
[1751478088272,1.95257,2559.6,2559.0,4.52519]
[1751478088467,1.95257,2559.6,2558.4,27.26943675]
[1751478088673,0.78125,2558.9,2558.5,3.744]
[1751478088875,0.78122,2559.0,2558.5,3.744]
[1751478089168,1.95271,2559.4,2558.5,3.744]
[1751478089169,0.78119,2559.1,2558.9,0.78122]
[1751478089369,0.7813,2558.7,2558.5,0.78133]
[1751478089575,0.78123,2558.9,2558.4,4.0274]
[1751478089776,0.78128,2558.8,2558.5,0.78134]
[1751478089978,0.78131,2558.7,2558.5,4.52534]
[1751478090176,0.78136,2558.5,2558.4,4.0274]
[1751478090479,1.95359,2558.3,2556.9,1.974452]
[1751478090673,0.78161,2557.7,2557.3,7.4546]
[1751478090872,1.95375,2558.1,2557.5,0.78164]
[1751478091081,0.78163,2557.6,2557.5,0.78164]
[1751478091374,0.78162,2557.7,2557.5,0.78164]
[1751478091673,0.78165,2557.6,2557.3,7.4546]
[1751478091872,0.006337,2557.6,2557.3,7.4546]
[1751478092070,0.006337,2557.6,2557.5,0.78166]
[1751478092267,3.7181,2558.1,2557.6,0.78162]
[1751478092473,13.39,2558.7,2557.7,3.7534]
[1751478092675,0.78146,2558.2,2558.0,0.7815]
[1751478092976,3.7181,2558.8,2558.3,0.78141]
[1751478093176,3.7181,2558.8,2558.2,0.78143]
[1751478093374,3.7181,2558.8,2557.9,1.95385]
[1751478093572,0.78133,2558.6,2558.4,0.78137]
[1751478093878,1.95265,2559.5,2558.5,1.95339]
[1751478094175,0.78125,2558.9,2558.7,0.78129]
[1751478094376,0.7813,2558.7,2558.5,8.21874]
[1751478094573,0.7813,2558.7,2558.5,7.4374]
[1751478094773,1.9528,2559.3,2558.7,0.78128]
[1751478094977,4.0248,2559.2,2558.7,0.78128]
[1751478095177,0.78128,2558.8,2558.6,0.78131]
[1751478095479,4.0248,2559.2,2558.5,7.4374]
[1751478095678,0.78119,2559.1,2558.9,0.78121]
[1751478095977,0.78117,2559.1,2558.9,0.78122]
[1751478096279,0.78122,2559.0,2558.8,0.78125]
[1751478096576,0.78119,2559.1,2558.9,0.78123]
[1751478096981,0.78116,2559.2,2559.0,0.78119]
[1751478097281,48.23569,2559.6,2559.2,0.78114]
[1751478097282,0.78113,2559.3,2559.2,0.78114]
[1751478097679,3.8001,2559.6,2559.5,0.78105]
[1751478097680,0.78103,2559.6,2559.5,0.78105]
[1751478097980,3.8676,2560.2,2559.4,7.89661675]
[1751478098175,1.04597271,2560.1,2559.2,1.95286]
[1751478098381,0.39663442,2560.2,2559.6,1.95254]
[1751478098685,13.389,2560.3,2559.8,0.78094]
[1751478098878,3.8676,2560.2,2559.9,0.78092]
[1751478099382,0.78089,2560.1,2559.9,0.78093]
[1751478099573,0.78085,2560.2,2560.1,0.78086]
[1751478099774,0.78082,2560.3,2559.8,1.9524]
[1751478099973,3.9563,2560.6,2560.1,0.78086]
[1751478100282,3.9563,2560.6,2560.2,0.78084]
[1751478100283,0.78082,2560.3,2560.2,0.78084]
[1751478100479,0.78087,2560.1,2560.0,0.78088]
[1751478100676,3.9563,2560.6,2559.8,3.9716]
[1751478100879,7.89661675,2560.3,2559.4,3.8353]
[1751478101079,46.2183,2560.2,2559.9,0.78092]
[1751478101282,42.262,2560.6,2559.8,0.78096]
[1751478101580,48.85475,2560.7,2559.8,0.78096]
[1751478101581,46.903,2560.7,2560.0,0.7809]
[1751478101787,0.7807,2560.7,2560.5,0.78075]
[1751478101982,0.78061,2561.0,2560.9,0.78061]
[1751478102281,0.78063,2560.9,2560.7,0.78066]
[1751478102486,0.78065,2560.8,2560.7,0.78066]
[1751478103184,1.95175,2560.7,2559.4,1.95268]
[1751478103386,0.78094,2559.9,2559.8,0.78094]
[1751478103580,3.7674,2560.7,2559.8,7.89661675]
[1751478103779,10.09461675,2561.4,2559.1,7.9036]
[1751478103780,89.5453453,2561.2,2560.3,1.95196]
[1751478104086,3.7674,2561.1,2560.8,0.78064]
[1751478104277,0.78054,2561.2,2561.1,0.78055]
[1751478104483,0.38759175,2561.6,2560.7,1.95166]
[1751478104676,0.78051,2561.3,2561.2,0.78053]
[1751478105083,0.78053,2561.2,2561.1,0.78054]
[1751478105481,3.7674,2561.5,2560.7,13.72097675]
[1751478105688,0.78042,2561.6,2561.4,0.78046]
[1751478105882,0.78044,2561.5,2561.3,0.78048]
[1751478106084,0.78046,2561.5,2561.3,0.7805]
[1751478106286,45.9123,2561.8,2561.0,5.74725]
[1751478106590,0.78042,2561.6,2561.1,1.95141]
[1751478106784,0.78048,2561.4,2561.2,0.7805]
[1751478106985,4.06095,2561.8,2561.0,5.74726]
[1751478107185,4.06095,2561.8,2561.4,0.78045]
[1751478107186,0.78043,2561.6,2561.4,0.78045]
[1751478107385,46.30895,2561.8,2561.3,0.78049]
[1751478107581,46.30895,2561.8,2561.4,0.78047]
[1751478107787,46.30895,2561.8,2561.0,0.78058]
[1751478107788,1.95103,2561.6,2561.0,0.78058]
[1751478107983,0.78058,2561.1,2560.7,4.0102]
[1751478108187,0.78059,2561.0,2560.9,0.78061]
[1751478108686,0.78059,2561.0,2560.8,0.78064]
[1751478108988,4.44481,2561.3,2561.1,0.78054]
[1751478109192,4.44481,2561.3,2561.2,0.78053]
[1751478109493,0.78058,2561.1,2560.9,0.78061]
[1751478109788,0.78064,2560.9,2560.7,0.78066]
[1751478109982,0.78065,2560.8,2560.3,5.70519]
[1751478110187,0.7807,2560.7,2560.3,7.4784]
[1751478110388,0.7807,2560.7,2560.6,0.78071]
[1751478110785,3.715,2561.1,2560.3,7.4784]
[1751478110987,0.7806,2561.0,2560.9,0.78062]
[1751478111189,55.614,2561.6,2560.7,1.95169]
[1751478111391,0.78053,2561.2,2561.1,0.78054]
[1751478111886,0.78052,2561.3,2561.1,0.78054]
[1751478112091,0.78053,2561.2,2560.7,1.95169]
[1751478112286,0.78053,2561.2,2561.1,0.78054]
[1751478112489,0.78057,2561.1,2561.0,0.78058]
[1751478112886,1.95118,2561.4,2560.9,0.7806]
[1751478113088,9.84795675,2561.2,2560.4,3.8147]
[1751478113288,9.84795675,2561.2,2560.5,0.78072]
[1751478113289,0.78072,2560.6,2560.5,0.78072]
[1751478113492,0.78067,2560.8,2560.7,0.78067]
[1751478113693,0.78066,2560.8,2560.7,0.78066]
[1751478114390,0.78064,2560.9,2560.8,0.78065]
[1751478114694,0.78057,2561.1,2561.0,0.78058]
[1751478115091,0.78055,2561.2,2561.1,0.78056]
[1751478115294,0.78057,2561.1,2561.0,0.78057]
[1751478115589,0.78056,2561.2,2561.1,0.78055]
[1751478115790,48.07685,2561.5,2560.6,1.95179]
[1751478115997,0.78063,2560.9,2560.8,0.78063]
[1751478116195,0.78062,2561.0,2560.9,0.78062]
[1751478116394,0.78063,2560.9,2560.8,0.78063]
[1751478116594,0.78062,2561.0,2560.9,0.78061]
[1751478116995,3.8977,2561.1,2560.5,1.95184]
[1751478116996,0.78065,2560.9,2560.8,0.78064]
[1751478117196,0.78061,2561.0,2560.9,0.7806]
[1751478117696,44.17914,2561.5,2560.6,7.89661675]
[1751478117890,5.71293,2561.5,2560.8,1.95158]
[1751478118096,0.78058,2561.1,2561.0,0.78057]
[1751478118391,3.7618,2561.5,2560.8,1.95164]
[1751478118597,0.78053,2561.3,2561.2,0.78051]
[1751478118787,3.7618,2561.5,2561.0,1.95148]
[1751478118987,0.7805,2561.4,2561.3,0.78048]
[1751478119397,0.78046,2561.5,2561.4,0.78045]
[1751478119697,1.95105,2561.6,2560.9,9.84816675]
[1751478119888,0.78052,2561.4,2561.3,0.78048]
[1751478120086,0.78047,2561.4,2561.3,0.78048]
[1751478120298,0.78046,2561.5,2561.4,0.78045]
[1751478120493,1.95096,2561.7,2561.2,0.78051]
[1751478120696,0.78052,2561.3,2561.2,0.78051]
[1751478121098,0.78052,2561.3,2560.5,3.90373]
[1751478121099,12.89661675,2561.3,2560.2,4.0309]
[1751478121295,0.7807,2560.7,2560.6,0.78069]
[1751478121499,1.95112,2561.5,2560.6,1.95179]
[1751478121699,0.78056,2561.2,2561.1,0.78054]
[1751478121898,0.78056,2561.2,2560.7,3.9568]
[1751478121899,0.7806,2561.1,2561.0,0.78058]
[1751478122194,0.78056,2561.2,2561.1,0.78054]
[1751478122402,0.78047,2561.5,2561.4,0.78044]
[1751478122700,0.78043,2561.6,2561.5,0.78042]
[1751478122899,0.78045,2561.5,2561.4,0.78045]
[1751478123097,4.66471,2561.7,2561.6,0.78041]
[1751478123295,0.78059,2561.1,2561.0,0.78057]
[1751478123495,5.83527,2561.7,2560.5,21.04861675]
[1751478123699,0.78046,2561.5,2561.4,0.78043]
[1751478123897,0.7805,2561.4,2561.2,0.78051]
[1751478124097,0.78056,2561.2,2561.1,0.78054]
[1751478124594,0.78053,2561.3,2561.2,0.78051]
[1751478124796,7.77636,2561.9,2561.1,7.89661675]
[1751478124797,1.9508,2561.9,2561.1,7.89661675]
[1751478124998,0.78046,2561.5,2561.4,0.78045]
[1751478125195,0.78043,2561.6,2561.5,0.78041]
[1751478125505,0.7804,2561.7,2561.6,0.7804]
[1751478125795,5.83524,2562.0,2561.4,1.95117]
[1751478125796,3.8845,2562.0,2561.4,1.95117]
[1751478125993,1.04319718,2561.9,2561.8,0.78033]
[1751478126896,1.82351718,2561.9,2561.8,0.78033]
[1751478127097,0.78044,2561.6,2561.5,0.78043]
[1751478127293,0.7804,2561.7,2561.6,0.7804]
[1751478127594,3.9325,2562.0,2561.3,1.95126]
[1751478127800,1.82520526,2561.9,2561.8,0.78032]
[1751478128197,1.82520526,2561.9,2561.7,0.78037]
[1751478128198,0.78037,2561.8,2561.7,0.78037]
[1751478128403,0.78044,2561.5,2561.4,0.78046]
[1751478128801,0.78049,2561.4,2561.3,0.78048]
[1751478129102,0.78052,2561.3,2561.2,0.78052]
[1751478129302,0.78056,2561.1,2561.0,0.78057]
[1751478129899,3.9325,2561.4,2560.7,5.8139]
[1751478130099,3.9325,2561.4,2560.9,1.95155]
[1751478130295,0.7805,2561.4,2561.3,0.7805]
[1751478130503,1.04624047,2561.6,2561.2,1.95132]
[1751478130700,1.04622434,2561.5,2561.4,0.78047]
[1751478131100,2.3119279,2562.0,2561.9,0.78032]
[1751478131494,2.3119279,2562.1,2562.0,0.78029]
[1751478132398,1.5029779,2562.3,2562.1,0.78026]
[1751478132604,3.10684498,2563.0,2562.9,0.78001]
[1751478132799,0.77997,2563.1,2563.0,0.77998]
[1751478133005,0.77993,2563.2,2563.1,0.77993]
[1751478133401,4.8507,2563.3,2563.2,0.77992]
[1751478133904,3.84466393,2563.7,2562.6,3.9498]
[1751478134096,3.84466393,2564.0,2562.9,3.8204]
[1751478134301,0.77976,2563.8,2563.0,1.94997]
[1751478134498,4.76253,2563.9,2563.6,0.77979]
[1751478134697,3.9828,2563.9,2563.3,0.77988]
[1751478134898,3.9828,2563.9,2563.1,3.8204]
[1751478135104,3.9828,2563.9,2563.2,1.94982]
[1751478135302,3.9828,2563.9,2563.3,3.8204]
[1751478135503,0.77975,2563.8,2563.6,0.77979]
[1751478135802,0.30194122,2564.8,2564.0,0.77966]
[1751478136006,3.9828,2564.6,2563.7,9.84604675]
[1751478136208,0.77953,2564.5,2563.8,3.7817]
[1751478136409,0.77957,2564.4,2564.1,0.77962]
[1751478136809,0.77956,2564.4,2564.2,0.77961]
[1751478137108,4.3652753,2564.6,2564.1,0.77963]
[1751478137307,4.3652753,2564.6,2563.8,3.7817]
[1751478137508,0.77958,2564.4,2564.2,0.77962]
[1751478137705,0.77955,2564.5,2563.8,5.73101]
[1751478137905,0.77957,2564.4,2564.2,0.7796]
[1751478138203,0.77954,2564.5,2564.3,0.77959]
[1751478138411,0.77953,2564.5,2564.3,0.77958]
[1751478138607,0.77956,2564.4,2564.2,0.7796]
[1751478138804,4.76231,2564.6,2564.4,0.77954]
[1751478139304,3.9828,2564.6,2563.8,5.73101]
[1751478139519,7.89661675,2564.4,2563.1,22.98946675]
[1751478139714,0.77983,2563.6,2563.3,0.77987]
[1751478139916,0.77983,2563.6,2562.9,1.94999]
[1751478139917,0.77979,2563.7,2563.5,0.77982]
[1751478140213,15.58621675,2564.3,2563.3,1.94974]
[1751478140214,4.57514,2563.9,2563.3,1.94974]
[1751478140413,4.57514,2563.9,2563.7,0.77975]
[1751478140719,4.57511,2563.9,2563.8,0.77974]
[1751478140919,4.57511,2563.9,2563.7,0.77975]
[1751478141113,3.7954,2563.9,2563.8,0.77974]
[1751478141314,0.77969,2564.0,2563.8,0.77972]
[1751478141717,0.77969,2564.0,2563.8,0.77973]
[1751478141915,0.77972,2563.9,2563.7,0.77975]
[1751478142114,0.77971,2564.0,2563.8,0.77973]
[1751478142314,0.77971,2563.9,2563.7,0.77975]
[1751478142515,0.7797,2564.0,2563.8,0.77974]
[1751478142717,0.77973,2563.9,2563.7,0.77976]
[1751478142920,0.77974,2563.8,2563.6,0.77978]
[1751478143116,0.77978,2563.7,2563.5,0.77982]
[1751478143420,5.74448,2564.2,2563.7,0.77977]
[1751478143615,0.77974,2563.8,2563.7,0.77977]
[1751478144013,0.77973,2563.9,2563.4,1.94966]
[1751478144216,0.77973,2563.9,2563.8,0.77974]
[1751478144416,5.74448,2564.2,2563.6,0.77978]
[1751478144417,0.77977,2563.7,2563.6,0.77978]
[1751478144717,3.8051,2563.8,2563.7,0.77976]
[1751478145019,3.8942,2564.3,2563.2,3.8806]
[1751478145020,1.94913,2564.1,2563.2,3.8806]
[1751478145217,0.77982,2563.6,2563.5,0.77983]
[1751478145413,0.77986,2563.4,2563.2,3.8806]
[1751478145618,0.77981,2563.6,2563.2,3.8806]
[1751478145818,0.77984,2563.5,2563.4,0.77984]
[1751478146024,0.77987,2563.4,2563.3,0.77987]
[1751478146223,0.77985,2563.5,2563.4,0.77984]
[1751478146419,0.77983,2563.6,2563.5,0.77982]
[1751478146719,1.94918,2564.1,2563.2,3.8806]
[1751478146720,1.94913,2564.1,2563.2,3.8806]
[1751478146924,0.77989,2563.4,2563.3,0.77988]
[1751478147128,0.77983,2563.6,2563.5,0.77982]
[1751478147422,1.94931,2563.9,2563.5,0.77983]
[1751478147722,0.77983,2563.6,2563.5,0.77983]
[1751478147919,3.6538,2563.8,2563.3,1.94974]
[1751478148121,0.77978,2563.7,2563.6,0.77978]
[1751478148321,4.43356,2563.8,2563.7,0.77977]
[1751478148620,0.77978,2563.7,2563.6,0.77978]
[1751478149019,4.43356,2563.8,2563.7,0.77977]
[1751478149219,0.77976,2563.8,2563.7,0.77977]
[1751478149424,0.77973,2563.9,2563.8,0.77972]
[1751478149626,0.77973,2563.9,2563.5,1.94957]
[1751478149627,4.41008,2564.1,2564.0,0.77968]
[1751478149826,0.7797,2564.0,2563.9,0.77969]
[1751478150118,3.6304,2564.1,2563.2,3.8806]
[1751478150318,3.6304,2564.1,2562.6,46.844]
[1751478150319,1.94951,2563.7,2563.0,5.67365]
[1751478150519,0.77989,2563.4,2563.3,0.77987]
[1751478152122,0.77985,2563.5,2563.4,0.77984]
[1751478152629,0.77991,2563.3,2563.2,0.7799]
[1751478152926,0.77982,2563.6,2563.5,0.77981]
[1751478153126,0.7799,2563.3,2563.2,0.77989]
[1751478153424,0.77988,2563.4,2563.3,0.77987]
[1751478153624,0.77994,2563.2,2563.1,0.77993]
[1751478153822,0.77995,2563.1,2563.0,4.50367]
[1751478154129,0.77994,2563.2,2563.1,0.77993]
[1751478154328,0.77997,2563.1,2563.0,0.77996]
[1751478154627,0.77994,2563.2,2563.1,0.77994]
[1751478154817,3.7247,2563.4,2562.9,1.95003]
[1751478155023,4.50457,2563.4,2563.3,0.77989]
[1751478155218,3.7247,2563.4,2563.0,1.94997]
[1751478155424,0.77992,2563.3,2563.2,0.77991]
[1751478155624,4.50459,2563.4,2563.3,0.77989]
[1751478156627,3.7247,2563.4,2563.3,0.77989]
[1751478156830,0.77985,2563.5,2563.4,0.77982]
[1751478157029,1.94937,2563.8,2563.5,0.77979]
[1751478157030,0.77982,2563.6,2563.5,0.77979]
[1751478157226,4.49407,2563.8,2563.7,0.77977]
[1751478157929,5.66371,2563.8,2563.1,1.94984]
[1751478158228,0.77987,2563.5,2563.4,0.77984]
[1751478158821,0.77991,2563.4,2563.3,0.77987]
[1751478159234,0.77985,2563.5,2563.4,0.77983]
[1751478159530,0.77979,2563.7,2563.6,0.77977]
[1751478159730,4.64489,2563.7,2563.6,0.77977]
[1751478160529,0.77986,2563.5,2563.4,0.77984]
[1751478160727,0.77982,2563.6,2563.5,0.77981]
[1751478161332,4.64489,2563.7,2563.6,0.7798]
[1751478162136,4.84482203,2563.7,2563.6,0.7798]
[1751478162339,4.64487,2563.7,2563.6,0.7798]
[1751478163136,4.84562523,2563.7,2563.6,0.7798]
[1751478163443,0.77972,2563.9,2563.8,0.7797]
[1751478163739,1.76022541,2563.9,2563.8,0.7797]
[1751478165134,1.76021541,2563.9,2563.8,0.7797]
[1751478166542,0.98050541,2563.9,2563.4,1.94966]
[1751478166741,0.7798,2563.7,2563.6,0.77976]
[1751478167037,1.76030541,2563.7,2563.6,0.77976]
[1751478167241,0.98050541,2563.7,2563.6,0.77976]
[1751478168838,0.98646595,2563.7,2563.5,9.03618333]
[1751478169039,0.77971,2563.9,2563.6,1.94947]
[1751478169238,0.98641621,2563.8,2563.7,0.77977]
[1751478172243,0.77963,2564.2,2564.1,0.77965]
[1751478172445,0.77961,2564.3,2564.2,0.77962]
[1751478172648,1.76618044,2564.3,2564.2,0.77962]
[1751478173142,2.31109152,2564.6,2564.3,1.94898]
[1751478173344,2.31109152,2564.6,2564.5,7.86616333]
[1751478173535,3.09055152,2564.8,2564.7,0.77947]
[1751478173740,0.77946,2564.8,2564.7,0.77947]
[1751478174042,0.77942,2564.9,2564.8,0.77942]
[1751478174546,4.63976,2565.1,2564.5,7.08663333]
[1751478174742,0.77938,2565.0,2564.9,0.77938]
[1751478175052,4.63976,2565.1,2564.9,0.77938]
[1751478175240,4.63976,2565.1,2565.0,0.77938]
[1751478175437,0.77934,2565.2,2565.1,0.77935]
[1751478175642,0.77929,2565.3,2565.2,0.77931]
[1751478175840,3.8351,2565.3,2565.2,0.77931]
[1751478176241,0.0525902,2565.3,2565.2,0.77931]
[1751478178049,0.0525902,2565.3,2565.2,8.25731]
[1751478178747,0.0525902,2565.3,2565.2,3.8004]
[1751478178950,0.77934,2565.2,2565.1,0.77934]
[1751478179144,0.77936,2565.1,2565.0,0.77937]
[1751478179343,0.0525902,2565.1,2565.0,0.77937]
[1751478180941,0.0525902,2565.1,2565.0,0.77938]
[1751478183351,0.77921,2565.6,2565.5,0.77919]
[1751478183747,0.77918,2565.7,2565.6,0.77917]
[1751478183947,0.77915,2565.8,2565.7,0.77914]
[1751478184449,48.74026,2566.6,2566.1,0.77903]
[1751478184648,3.6098,2566.8,2566.3,7.08663333]
[1751478184843,3.6098,2566.8,2566.6,7.08663333]
[1751478185152,0.97281167,2566.7,2566.2,5.55551]
[1751478185354,0.97281167,2566.6,2566.5,0.77892]
[1751478185950,0.97281167,2566.6,2566.5,4.36352]
[1751478186153,3.5842,2567.2,2566.2,10.69463333]
[1751478186448,3.5842,2567.2,2566.5,0.7789]
[1751478186449,0.96325533,2567.1,2566.5,0.7789]
[1751478186650,0.77888,2566.7,2566.5,0.7789]
[1751478186949,1.947,2566.9,2566.2,3.608]
[1751478187251,1.947,2566.9,2566.0,10.90933333]
[1751478187252,3.5842,2566.6,2566.0,7.08663333]
[1751478187459,0.77896,2566.4,2566.0,7.08663333]
[1751478187656,0.77896,2566.4,2566.2,0.779]
[1751478187947,0.38797619,2567.1,2565.8,0.30768063]
[1751478188155,0.9628432,2567.0,2566.9,0.7788]
[1751478188348,3.6447,2567.4,2566.9,7.08663333]
[1751478188554,0.77875,2567.1,2566.8,0.77881]
[1751478188850,0.96189143,2567.0,2566.9,0.7788]
[1751478189046,0.77882,2566.9,2566.5,7.08663333]
[1751478189251,3.6447,2567.0,2566.4,3.6392]
[1751478189451,3.6447,2566.8,2566.4,3.6392]
[1751478189651,3.6447,2566.8,2566.7,0.77886]
[1751478190050,0.77875,2567.1,2566.9,0.7788]
[1751478190252,3.6447,2567.2,2566.9,0.77879]
[1751478190452,0.77874,2567.1,2566.9,0.77879]
[1751478190753,3.7095,2567.8,2567.1,1.94685]
[1751478190951,0.9608956,2567.7,2567.2,7.08663333]
[1751478191147,0.9608956,2567.6,2567.5,0.7786]
[1751478191562,0.9608956,2567.6,2567.2,7.08663333]
[1751478191755,0.9608956,2567.5,2567.4,0.77862]
[1751478192356,4.38831,2567.9,2567.3,1.9467]
[1751478192551,13.03,2568.6,2567.8,7.08663333]
[1751478192758,13.03,2568.6,2567.6,0.77857]
[1751478192759,0.77854,2567.8,2567.6,0.77857]
[1751478193155,0.77851,2567.9,2567.7,0.77856]
[1751478193350,3.6098,2568.1,2567.1,3.89369]
[1751478193557,3.6098,2568.1,2567.6,7.08663333]
[1751478193757,3.6098,2568.1,2567.4,7.85894322]
[1751478193956,3.6098,2568.1,2567.5,1.94655]
[1751478194158,5.65532,2568.5,2567.7,7.85894322]
[1751478194357,5.69579,2568.4,2567.8,0.77851]
[1751478194656,5.69579,2568.4,2567.8,0.77853]
[1751478194657,0.77848,2568.0,2567.8,0.77853]
[1751478194857,1.94587,2568.4,2567.7,7.85894322]
[1751478195161,3.7499,2568.4,2567.7,7.85894322]
[1751478195361,0.77847,2568.0,2567.8,0.77851]
[1751478195564,0.77853,2567.8,2567.6,4.33066]
[1751478195763,3.7499,2568.4,2567.6,3.5521]
[1751478195764,0.77856,2567.7,2567.6,3.5521]
[1751478195957,50.4037,2568.7,2567.6,11.41104322]
[1751478196157,0.77848,2568.0,2567.8,0.77851]
[1751478196352,0.77847,2568.0,2567.6,11.41104322]
[1751478196556,5.69577,2568.4,2567.9,0.77849]
[1751478196759,0.77847,2568.0,2567.8,0.7785]
[1751478197062,3.7499,2568.4,2567.6,15.08044322]
[1751478197357,0.77847,2568.0,2567.9,8.63742322]
[1751478197557,5.69579,2568.4,2567.6,3.5521]
[1751478197763,5.69579,2568.4,2566.9,11.56224322]
[1751478197764,0.77869,2567.3,2566.9,11.56224322]
[1751478197958,3.7499,2568.4,2567.2,7.85894322]
[1751478198161,1.94617,2568.0,2567.5,8.63754322]
[1751478198362,1.94602,2568.2,2567.5,7.85894322]
[1751478198564,0.77854,2567.8,2567.7,0.77855]
[1751478199161,0.77848,2568.0,2567.6,7.2929]
[1751478199362,1.94594,2568.4,2567.9,7.85894322]
[1751478199567,0.77853,2567.8,2567.7,3.6694]
[1751478199766,0.77856,2567.7,2567.6,3.6235]
[1751478201164,0.77865,2567.4,2567.3,11.59894322]
[1751478201471,0.77873,2567.2,2567.1,0.77874]
[1751478201663,0.77874,2567.1,2567.0,16.16859322]
[1751478201960,13.024,2567.6,2566.1,7.85894322]
[1751478202165,1.947,2566.9,2566.0,1.94768]
[1751478202362,3.9306,2566.8,2566.4,0.77894]
[1751478202564,3.9306,2566.8,2566.2,7.85894322]
[1751478202757,0.77897,2566.4,2566.3,0.77897]
[1751478203065,0.77902,2566.2,2565.9,7.85894322]
[1751478203268,0.77907,2566.1,2565.6,28.16354322]
[1751478203470,1.94716,2566.7,2566.1,0.77902]
[1751478203670,0.779,2566.3,2566.2,0.77901]
[1751478203870,0.77893,2566.5,2566.4,0.77894]
[1751478204070,1.94708,2566.8,2566.3,0.77897]
[1751478204270,0.77892,2566.5,2566.3,0.77896]
[1751478204573,0.77902,2566.2,2566.1,0.77902]
[1751478204768,1.94716,2566.7,2566.0,0.77906]
[1751478205070,3.5738,2566.6,2566.1,0.77904]
[1751478205270,0.77901,2566.2,2566.1,0.77904]
[1751478205972,5.52106,2566.6,2565.6,18.76074322]
[1751478206165,0.77903,2566.2,2566.1,0.77902]
[1751478206572,5.52106,2566.6,2565.7,1.94792]
[1751478206767,0.77901,2566.2,2566.1,0.77903]
[1751478206973,5.52106,2566.6,2566.3,0.77895]
[1751478206974,3.5738,2566.6,2566.3,0.77895]
[1751478207164,0.7788,2566.9,2566.8,0.77882]
[1751478207566,0.96177187,2566.9,2566.5,7.85894322]
[1751478207768,0.96177187,2566.9,2566.1,7.85894322]
[1751478207769,0.77895,2566.4,2566.1,7.85894322]
[1751478208074,1.94723,2566.6,2566.1,0.77902]
[1751478208267,4.73207541,2566.5,2565.8,8.16522607]
[1751478208468,0.77902,2566.2,2566.1,0.77903]
[1751478208663,1.94738,2566.4,2565.6,9.20374]
[1751478208871,3.7697,2566.1,2565.3,9.80712322]
[1751478209068,0.77912,2565.9,2565.8,0.77913]
[1751478209372,0.77913,2565.9,2565.8,0.77913]
[1751478209573,3.7697,2566.1,2565.9,0.7791]
[1751478209870,4.54877,2566.1,2566.0,0.77907]
[1751478210170,0.9628054,2566.1,2566.0,0.77907]
[1751478210573,12.951,2566.9,2566.1,1.94755]
[1751478210776,0.779,2566.3,2566.2,0.77901]
[1751478210968,4.74204309,2566.8,2566.1,0.77902]
[1751478210969,0.77901,2566.2,2566.1,0.77902]
[1751478211272,3.7784,2566.2,2566.1,0.77902]
[1751478211467,8.7784,2566.2,2565.5,1.94802]
[1751478211667,0.96416272,2566.1,2566.0,0.77907]
[1751478211868,0.96416272,2566.1,2565.9,0.7791]
[1751478212172,0.96416272,2566.1,2565.9,0.77909]
[1751478212473,0.77901,2566.2,2565.9,0.77909]
[1751478212863,0.77907,2566.0,2565.9,0.77909]
[1751478213071,1.94743,2566.4,2565.7,7.85894322]
[1751478213072,1.94749,2566.3,2565.7,7.85894322]
[1751478213369,1.94688,2567.1,2566.2,7.85894322]
[1751478213673,0.96476957,2567.0,2566.6,7.85894322]
[1751478213971,0.77884,2566.8,2566.7,0.77885]
[1751478214165,0.96476957,2566.8,2566.7,0.77885]
[1751478215574,0.96476957,2566.8,2566.3,14.81439755]
[1751478215774,5.47953957,2566.7,2566.6,0.77889]
[1751478216166,9.70066957,2566.7,2565.9,3.6105]
[1751478216467,0.77904,2566.1,2566.0,0.77905]
[1751478216666,0.97122075,2566.1,2565.8,7.06779755]
[1751478216872,0.97122087,2566.0,2565.9,0.7791]
[1751478217268,0.77903,2566.2,2566.1,0.77904]
[1751478217471,0.97107606,2566.2,2565.8,9.01561755]
[1751478217671,0.77902,2566.2,2566.1,0.77902]
[1751478217865,0.779,2566.3,2566.2,0.779]
[1751478218071,1.75008368,2566.3,2566.2,0.779]
[1751478218271,0.77902,2566.2,2566.1,0.77902]
[1751478218471,0.9709052,2566.2,2566.1,0.77904]
[1751478218873,0.9709052,2566.2,2566.1,4.28234]
[1751478219671,4.44521,2566.9,2566.8,0.77883]
[1751478219872,4.6370688,2566.9,2566.8,0.77883]
[1751478220767,4.4452,2566.9,2566.8,0.77883]
[1751478222474,0.77897,2566.4,2566.3,0.77896]
[1751478222679,0.77902,2566.2,2566.1,0.77902]